[Event "36th Balaton Open A 2018"]
[Site "Balatonlelle"]
[Date "2018.06.19"]
[Round "8"]
[White "Kincs, Imre"]
[Black "Boguszlavszkij, Jevgenyij"]
[Result "0-1"]
[ECO "B06"]
[WhiteElo "2210"]
[BlackElo "2170"]
[Annotator "NA"]
[PlyCount "78"]
[EventDate "2018.06.12"]
[EventType "swiss"]
[EventCountry "HUN"]
[SourceTitle "playchess.com"]
[Source "ChessBase"]
[SourceQuality "1"]
[TimeControl "40/5400+30:1800+30"]

1. e4 {[%emt 0:06:16]} g6 {[%emt 0:03:38]} 2. d4 {[%emt 0:00:28]} c6 {[%emt 0:00:15]} 3. Nf3 {[%emt 0:05:06]} Bg7 {[%emt 0:00:53]} 4. h4 {[%emt 0:00:52]} d5 {[%emt 0:02:08]} 5. exd5 {[%emt 0:02:02]} Bg4 {[%emt 0:02:18]} 6. dxc6 {[%emt 0:00:48]} Nxc6 {[%emt 0:00:07]} 7. c3 {[%emt 0:01:13]} e5 {[%emt 0:01:33]} 8. d5 {[%emt 0:03:46]} e4 {[%emt 0:00:53]} 9. Be2 {[%emt 0:00:16]} exf3 {[%emt 0:06:50]} 10. gxf3 {[%emt 0:00:08]} Bd7 {[%emt 0:00:21]} 11. dxc6 {[%emt 0:00:14]} Bxc6 {[%emt 0:00:09]} 12. Qxd8+ {[%emt 0:00:13]} Rxd8 {[%emt 0:00:09]} 13. h5 {[%emt 0:00:14]} Ne7 {[%emt 0:04:09]} 14. Nd2 {[%emt 0:02:50]} O-O {[%emt 0:04:09]} 15. h6 {[%emt 0:00:07]} Bh8 {[%emt 0:00:42]} 16. Ne4 {[%emt 0:00:55]} Nd5 {[%emt 0:01:58]} 17. Bd2 {[%emt 0:01:49]} Nf6 {[%emt 0:16:24]} 18. Ng3 {[%emt 0:04:38]} Rfe8 {[%emt 0:00:38]} 19. O-O-O {[%emt 0:01:19]} Nh5 {[%emt 0:01:05]} 20. Nxh5 {[%emt 0:00:19]} Rxe2 {[%emt 0:00:13]} 21. Be3 {[%emt 0:00:10]} Re8 {[%emt 0:01:51]} 22. Rh3 {[%emt 0:02:45]} R2xe3 $15 {[%emt 0:01:37]} ({But not} 22... gxh5 $6 23. Rg1+ Kf8 24. Bc5+ R2e7 25. Rhg3 $11) 23. fxe3 {[%emt 0:00:02]} gxh5 {[%emt 0:00:18]} 24. Rg1+ {[%emt 0:01:16]} Kf8 {[%emt 0:00:08]} 25. e4 {[%emt 0:00:10]} Re5 {[%emt 0:12:46]} 26. Rhg3 {[%emt 0:01:13]} Bf6 {[%emt 0:00:32]} 27. Rg8+ {[%emt 0:00:02]} Ke7 {[%emt 0:00:09]} 28. R8g7 {[%emt 0:00:22]} h4 {[%emt 0:00:17]} 29. Rxh7 {[%emt 0:00:44]} Rh5 {[%emt 0:00:48]} 30. Rh1 {[%emt 0:02:08]} Kf8 {[%emt 0:04:24]} 31. Kd1 {[%emt 0:01:51]} Kg8 {[%emt 0:00:26]} 32. Rg7+ {[%emt 0:00:03]} Bxg7 {[%emt 0:00:11]} 33. hxg7 {[%emt 0:00:01]} Kxg7 {[%emt 0:00:12]} 34. Ke2 {[%emt 0:00:13]} Kf6 {[%emt 0:02:47]} 35. Ke3 {[%emt 0:00:15]} Ke5 {[%emt 0:01:29]} 36. Rh2 {[%emt 0:02:33]} h3 {[%emt 0:01:00]} 37. f4+ {[%emt 0:00:05]} Ke6 {[%emt 0:00:52]} 38. c4 {[%emt 0:02:26]} f5 {[%emt 0:00:31]} 39. e5 {[%emt 0:00:10]} Bg2 {[%emt 0:00:17]} 0-1

[Event "36th Balaton Open A 2018"]
[Site "Balatonlelle"]
[Date "2018.06.19"]
[Round "8"]
[White "Forgacs, Jozsef"]
[Black "Haszon, David"]
[Result "1-0"]
[ECO "D85"]
[WhiteElo "2199"]
[BlackElo "2246"]
[Annotator "NA"]
[PlyCount "93"]
[EventDate "2018.06.12"]
[EventType "swiss"]
[EventCountry "HUN"]
[SourceTitle "playchess.com"]
[Source "ChessBase"]
[SourceQuality "1"]
[TimeControl "40/5400+30:1800+30"]

1. c4 {[%emt 0:00:30]} Nf6 {[%emt 0:00:58]} 2. d4 {[%emt 0:00:28]} g6 {[%emt 0:00:32]} 3. Nf3 {[%emt 0:00:13]} Bg7 {[%emt 0:00:34]} 4. Nc3 {[%emt 0:00:05]} d5 {[%emt 0:00:34]} 5. cxd5 {[%emt 0:00:06]} Nxd5 {[%emt 0:00:09]} 6. e4 {[%emt 0:00:05]} Nxc3 {[%emt 0:00:11]} 7. bxc3 {[%emt 0:00:05]} O-O {[%emt 0:00:36]} 8. Be2 {[%emt 0:00:17]} c5 {[%emt 0:00:54]} 9. O-O {[%emt 0:00:12]} b6 {[%emt 0:02:48]} 10. Be3 {[%emt 0:06:49]} Bb7 {[%emt 0:03:41]} 11. Qd3 {[%emt 0:05:11]} Qc7 {[%emt 0:11:32]} 12. Rac1 {[%emt 0:06:49]} e6 {[%emt 0:03:35]} 13. d5 {[%emt 0:08:00]} exd5 {[%emt 0:01:05]} 14. exd5 {[%emt 0:01:52]} Nd7 {[%emt 0:01:20]} 15. c4 {[%emt 0:03:20]} Nf6 {[%emt 0:04:01]} 16. Qd2 {[%emt 0:08:13]} Ne4 {[%emt 0:02:02]} 17. Qc2 {[%emt 0:00:13]} Rae8 {[%emt 0:02:13]} 18. Bd3 $14 {[%emt 0:08:57]} Nd6 {[%emt 0:01:22]} 19. Bf4 {[%emt 0:00:17]} Qd7 {[%emt 0:12:03]} 20. Rfe1 {[%emt 0:03:07]} b5 {[%emt 0:23:26]} 21. cxb5 {[%emt 0:09:36]} c4 {[%emt 0:04:54]} 22. Bxc4 {[%emt 0:03:45]} Nxc4 {[%emt 0:01:24]} 23. Qxc4 {[%emt 0:00:26]} Bxd5 {[%emt 0:00:45]} 24. Qd3 {[%emt 0:03:02]} Qb7 {[%emt 0:01:39]} 25. a4 {[%emt 0:00:50]} Be4 {[%emt 0:01:27]} 26. Qa3 {[%emt 0:04:24]} Rc8 {[%emt 0:05:45]} 27. h3 {[%emt 0:09:34]} Qd5 {[%emt 0:01:29]} 28. Rxc8 {[%emt 0:04:20]} Rxc8 {[%emt 0:00:07]} 29. Qe3 {[%emt 0:00:14]} f5 {[%emt 0:03:19]} 30. Ng5 {[%emt 0:04:07]} Re8 {[%emt 0:03:24]} 31. Nxe4 {[%emt 0:03:36]} Rxe4 {[%emt 0:00:16]} 32. Qc1 {[%emt 0:00:05]} h6 {[%emt 0:02:23]} 33. Rxe4 {[%emt 0:02:52]} Qxe4 {[%emt 0:00:11]} 34. a5 {[%emt 0:00:26]} Qb4 {[%emt 0:01:31]} 35. Qc8+ {[%emt 0:02:42]} Kh7 {[%emt 0:00:07]} 36. Qc7 {[%emt 0:00:31]} g5 {[%emt 0:02:04]} 37. Be3 {[%emt 0:00:29]} Kg6 {[%emt 0:02:33]} 38. Qc6+ {[%emt 0:01:32]} Kh7 {[%emt 0:00:21]} 39. Qe6 {[%emt 0:00:34]} Qxb5 {[%emt 0:00:51]} 40. a6 {[%emt 0:00:00]} g4 {[%emt 0:01:30]} 41. hxg4 {[%emt 0:00:37]} fxg4 {[%emt 0:01:57]} 42. Qe4+ {[%emt 0:08:43]} Kg8 {[%emt 0:00:14]} 43. Qa8+ {[%emt 0:00:13]} Bf8 {[%emt 0:00:30]} 44. Bxh6 {[%emt 0:02:57]} Qb1+ {[%emt 0:02:49]} 45. Kh2 {[%emt 0:00:22]} g3+ {[%emt 0:00:07]} 46. fxg3 {[%emt 0:00:31]} Qh7 {[%emt 0:00:14]} 47. Qxf8# {[%emt 0:00:12]} 1-0

[Event "36th Balaton Open A 2018"]
[Site "Balatonlelle"]
[Date "2018.06.19"]
[Round "8"]
[White "Metaxasz, Vaszilisz"]
[Black "Bellan, Istvan"]
[Result "0-1"]
[ECO "D92"]
[WhiteElo "2047"]
[BlackElo "1875"]
[Annotator "NA"]
[PlyCount "133"]
[EventDate "2018.06.12"]
[EventType "swiss"]
[EventCountry "HUN"]
[SourceTitle "playchess.com"]
[Source "ChessBase"]
[SourceQuality "1"]
[TimeControl "40/5400+30:1800+30"]

1. d4 {[%emt 0:04:59]} Nf6 {[%emt 0:00:46]} 2. c4 {[%emt 0:00:15]} g6 {[%emt 0:00:14]} 3. Nc3 {[%emt 0:00:15]} d5 {[%emt 0:00:25]} 4. Nf3 {[%emt 0:06:43]} Bg7 {[%emt 0:00:13]} 5. Bf4 {[%emt 0:02:00]} dxc4 {[%emt 0:01:44]} 6. e3 {[%emt 0:00:17]} O-O {[%emt 0:00:15]} 7. Bxc4 {[%emt 0:00:20]} a6 {[%emt 0:00:34]} 8. a4 {[%emt 0:07:49]} c5 {[%emt 0:04:42]} 9. d5 {[%emt 0:07:54]} Qa5 {[%emt 0:00:58]} 10. O-O {[%emt 0:02:40]} Bf5 {[%emt 0:03:05] [#]} 11. Nd2 $1 {[%emt 0:08:29]} Qb4 {[%emt 0:16:40]} (11... Qb6 $16) 12. Ra2 {[%emt 0:10:09]} e5 {[%emt 0:03:39]} 13. Bxe5 $16 {[%emt 0:02:49]} Nbd7 {[%emt 0:04:07]} 14. Bd6 {[%emt 0:07:52]} Rfe8 {[%emt 0:01:10]} 15. Qb3 {[%emt 0:03:04]} Nb6 {[%emt 0:02:13]} 16. Rc1 {[%emt 0:02:14]} Nxc4 {[%emt 0:01:16]} 17. Qxc4 {[%emt 0:00:16]} Rac8 {[%emt 0:07:13]} 18. Bg3 {[%emt 0:05:31]} Nd7 {[%emt 0:05:38]} 19. a5 {[%emt 0:01:24]} Ne5 {[%emt 0:02:36]} 20. Bxe5 {[%emt 0:00:15]} Bxe5 {[%emt 0:00:20]} 21. Qe2 {[%emt 0:02:43]} Bd7 {[%emt 0:05:52]} 22. Nf3 {[%emt 0:07:04]} Bc7 {[%emt 0:05:00]} 23. Rca1 {[%emt 0:00:09]} f5 {[%emt 0:01:02]} 24. h3 {[%emt 0:01:03]} c4 {[%emt 0:01:07]} 25. Nd4 {[%emt 0:02:07]} Be5 {[%emt 0:03:10]} 26. Qd2 {[%emt 0:00:40]} Qd6 {[%emt 0:01:21]} 27. Rd1 {[%emt 0:01:44]} Rc5 {[%emt 0:01:45]} 28. f3 {[%emt 0:04:19]} Qc7 {[%emt 0:01:26]} 29. Rda1 {[%emt 0:00:09]} Qd8 {[%emt 0:02:08]} 30. e4 {[%emt 0:00:58]} Qh4 {[%emt 0:00:23]} 31. Nde2 {[%emt 0:01:45]} g5 {[%emt 0:04:16]} 32. Qe3 {[%emt 0:01:23]} Rc7 {[%emt 0:01:35]} 33. Qf2 {[%emt 0:03:06]} Qh6 {[%emt 0:01:23]} 34. exf5 {[%emt 0:00:11]} Bxf5 {[%emt 0:00:26]} 35. Ng3 {[%emt 0:00:17]} Bd3 {[%emt 0:01:12]} 36. Re1 {[%emt 0:01:12]} Rce7 {[%emt 0:00:49]} 37. Nge4 {[%emt 0:00:17]} Qg7 {[%emt 0:01:03]} 38. Kh1 {[%emt 0:00:13]} g4 {[%emt 0:03:22]} 39. Raa1 {[%emt 0:01:24]} gxh3 {[%emt 0:03:31]} 40. d6 {[%emt 0:00:00]} hxg2+ {[%emt 0:00:20]} 41. Qxg2 {[%emt 0:00:38]} Qxg2+ {[%emt 0:00:29]} 42. Kxg2 {[%emt 0:00:02]} Rg7+ {[%emt 0:00:19]} 43. Kh3 {[%emt 0:07:07]} Rf8 {[%emt 0:04:55]} 44. Rf1 {[%emt 0:08:32]} Bxf1+ {[%emt 0:05:23]} 45. Rxf1 {[%emt 0:00:05]} Bxd6 {[%emt 0:01:35]} 46. Nd5 {[%emt 0:02:46]} Be5 {[%emt 0:00:50]} 47. Rf2 {[%emt 0:00:03]} Rf5 {[%emt 0:03:33]} 48. Kh4 {[%emt 0:00:58]} Bxb2 {[%emt 0:02:53]} 49. Rxb2 {[%emt 0:00:09]} Rxf3 {[%emt 0:01:43]} 50. Nef6+ {[%emt 0:01:25]} Kf8 {[%emt 0:03:45]} 51. Nh5 {[%emt 0:09:25]} Rd7 {[%emt 0:01:18]} 52. Nhf6 {[%emt 0:00:40]} Rf7 {[%emt 0:00:40]} 53. Kg5 {[%emt 0:00:08]} Rg7+ {[%emt 0:00:57]} 54. Kh4 {[%emt 0:00:46]} Rf1 {[%emt 0:00:22]} 55. Rh2 {[%emt 0:00:42]} c3 {[%emt 0:00:29]} 56. Ng4 {[%emt 0:04:01]} Ra1 {[%emt 0:08:53]} 57. Nxc3 {[%emt 0:00:45]} Rxa5 {[%emt 0:00:23]} 58. Ne4 {[%emt 0:01:03]} Ra4 {[%emt 0:02:49]} 59. Re2 {[%emt 0:00:18]} Rf7 {[%emt 0:00:42]} 60. Kg5 {[%emt 0:00:28]} Ra5+ {[%emt 0:01:29]} 61. Kh6 {[%emt 0:00:32]} Ra1 {[%emt 0:01:35]} 62. Nef6 {[%emt 0:00:29]} Rh1+ {[%emt 0:00:26]} 63. Kg5 {[%emt 0:00:06]} h6+ {[%emt 0:01:37]} 64. Kf5 {[%emt 0:01:05]} Kg7 65. Ke6 h5 66. Ne8+ Kf8 67. Ngf6 {[%emt 0:00:50] Kg7 Ng4+ [%clk 0:01:50]} 0-1

[Event "36th Balaton Open A 2018"]
[Site "Balatonlelle"]
[Date "2018.06.19"]
[Round "8"]
[White "Vukovic, Ivo"]
[Black "Schmuck, Corentin"]
[Result "0-1"]
[ECO "C00"]
[WhiteElo "2031"]
[BlackElo "1925"]
[Annotator "NA"]
[PlyCount "83"]
[EventDate "2018.06.12"]
[EventType "swiss"]
[EventCountry "HUN"]
[SourceTitle "playchess.com"]
[Source "ChessBase"]
[SourceQuality "1"]
[TimeControl "40/5400+30:1800+30"]

1. e4 {[%emt 0:00:04]} e6 {[%emt 0:00:42]} 2. d3 {[%emt 0:00:14]} d5 {[%emt 0:00:57]} 3. Nd2 {[%emt 0:00:10]} c5 {[%emt 0:00:24]} 4. Ngf3 {[%emt 0:01:56]} Nc6 {[%emt 0:00:18]} 5. g3 {[%emt 0:00:29]} Bd6 {[%emt 0:02:25]} 6. Bg2 {[%emt 0:00:20]} Nge7 {[%emt 0:00:10]} 7. O-O {[%emt 0:00:26]} O-O {[%emt 0:00:21]} 8. c3 {[%emt 0:00:44]} b6 {[%emt 0:06:34]} 9. Re1 {[%emt 0:07:57]} Bc7 {[%emt 0:03:49]} 10. a3 {[%emt 0:03:56]} a5 {[%emt 0:03:09]} 11. Qc2 {[%emt 0:10:29]} b5 {[%emt 0:09:48]} 12. b3 {[%emt 0:05:34]} Bb7 {[%emt 0:22:11]} 13. Bb2 {[%emt 0:05:48]} Qd7 {[%emt 0:02:30]} 14. Rad1 {[%emt 0:04:25]} a4 {[%emt 0:07:21]} 15. b4 {[%emt 0:03:56]} cxb4 {[%emt 0:05:08]} 16. cxb4 {[%emt 0:00:10]} Bb6 {[%emt 0:01:02]} 17. Qb1 {[%emt 0:07:44]} Rac8 {[%emt 0:05:30]} 18. Qa1 {[%emt 0:02:46]} f6 {[%emt 0:10:12]} 19. Bh3 {[%emt 0:00:52]} d4 {[%emt 0:01:35]} 20. Qa2 {[%emt 0:01:39]} Nd8 {[%emt 0:00:08]} 21. Rc1 {[%emt 0:00:27]} Rxc1 {[%emt 0:05:16]} 22. Rxc1 {[%emt 0:00:12]} Kh8 {[%emt 0:00:07]} 23. Qa1 {[%emt 0:01:35]} Ndc6 {[%emt 0:00:28]} 24. Rc2 {[%emt 0:02:51]} Qd6 {[%emt 0:00:39]} 25. Qa2 {[%emt 0:02:22]} f5 {[%emt 0:00:40]} 26. Bg2 {[%emt 0:10:15]} Ng6 {[%emt 0:02:10]} 27. Ng5 {[%emt 0:07:37]} Nd8 {[%emt 0:01:02]} 28. f4 {[%emt 0:02:47]} h6 {[%emt 0:03:31]} 29. e5 {[%emt 0:00:40]} Qd7 {[%emt 0:00:38]} 30. Ngf3 {[%emt 0:00:23]} Ne7 {[%emt 0:00:32]} 31. Qa1 {[%emt 0:00:16]} Ndc6 {[%emt 0:00:31]} 32. Nf1 {[%emt 0:01:02]} Rc8 {[%emt 0:02:53]} 33. Kh1 {[%emt 0:01:37]} Ra8 {[%emt 0:02:24]} 34. h4 {[%emt 0:00:29]} Nd5 {[%emt 0:00:13]} 35. Qe1 {[%emt 0:02:59]} Ne3 {[%emt 0:00:11]} 36. Re2 {[%emt 0:01:43]} Nxg2 {[%emt 0:00:08]} 37. Kxg2 {[%emt 0:00:07]} Ne7 {[%emt 0:00:10]} 38. N1h2 {[%emt 0:01:07]} Rc8 {[%emt 0:00:08]} 39. Kh3 {[%emt 0:01:26]} Nd5 {[%emt 0:00:51]} 40. Qg1 {[%emt 0:00:00]} Ne3 {[%emt 0:02:44]} 41. Qa1 {[%emt 0:02:07]} h5 {[%emt 0:11:57]} 42. Bc1 0-1

[Event "36th Balaton Open A 2018"]
[Site "Balatonlelle"]
[Date "2018.06.19"]
[Round "8"]
[White "Trajber, Daniel"]
[Black "Sardy, Peter"]
[Result "1-0"]
[ECO "B42"]
[WhiteElo "2022"]
[BlackElo "2340"]
[Annotator "NA"]
[PlyCount "100"]
[EventDate "2018.06.12"]
[EventType "swiss"]
[EventCountry "HUN"]
[SourceTitle "playchess.com"]
[Source "ChessBase"]
[SourceQuality "1"]
[TimeControl "40/5400+30:1800+30"]

1. e4 {[%emt 0:00:09]} c5 {[%emt 0:03:35]} 2. Nf3 {[%emt 0:00:21]} e6 {[%emt 0:00:05]} 3. d4 {[%emt 0:00:25]} cxd4 {[%emt 0:00:06]} 4. Nxd4 {[%emt 0:00:09]} a6 {[%emt 0:00:05]} 5. Bd3 {[%emt 0:01:38]} Ne7 {[%emt 0:00:09]} 6. O-O {[%emt 0:01:03]} Nbc6 {[%emt 0:00:25]} 7. Nxc6 {[%emt 0:04:09]} Nxc6 {[%emt 0:00:06]} 8. c4 {[%emt 0:00:13]} Be7 {[%emt 0:04:58]} 9. Nc3 {[%emt 0:02:19]} Qc7 {[%emt 0:13:11]} 10. Be3 {[%emt 0:06:56]} Ne5 {[%emt 0:07:54]} 11. Qe2 {[%emt 0:04:35]} O-O {[%emt 0:10:36]} 12. Rac1 {[%emt 0:05:56]} b6 {[%emt 0:05:17]} 13. Na4 {[%emt 0:08:30]} Rb8 {[%emt 0:11:11]} 14. c5 $11 {[%emt 0:15:01]} Nxd3 {[%emt 0:01:51]} 15. Qxd3 {[%emt 0:01:08]} bxc5 {[%emt 0:01:04]} 16. Nxc5 {[%emt 0:01:54]} Qc6 {[%emt 0:04:24]} 17. b3 {[%emt 0:07:46]} Rb5 {[%emt 0:08:17]} 18. Na4 {[%emt 0:07:20]} Qb7 {[%emt 0:01:39]} 19. Nc3 {[%emt 0:03:05]} Ra5 {[%emt 0:01:34]} 20. f4 {[%emt 0:03:41]} d6 {[%emt 0:04:50]} 21. f5 {[%emt 0:05:52]} Bd7 {[%emt 0:06:45]} 22. f6 {[%emt 0:04:04]} Bxf6 {[%emt 0:01:02]} 23. Rxf6 {[%emt 0:01:52]} gxf6 {[%emt 0:00:01]} 24. Bh6 {[%emt 0:01:54]} Qb6+ {[%emt 0:00:41]} 25. Kh1 {[%emt 0:01:07]} Rg5 {[%emt 0:00:41]} 26. Bxg5 {[%emt 0:01:56]} fxg5 {[%emt 0:00:30]} 27. Qg3 {[%emt 0:01:54]} h6 {[%emt 0:02:28]} 28. h4 {[%emt 0:01:06]} Qc5 {[%emt 0:04:44]} 29. Ne2 {[%emt 0:03:07]} Qe5 {[%emt 0:00:55]} 30. Qxe5 {[%emt 0:01:10]} dxe5 {[%emt 0:00:01]} 31. hxg5 {[%emt 0:00:17]} hxg5 {[%emt 0:00:01]} 32. Rc7 {[%emt 0:00:46]} Bb5 {[%emt 0:00:55]} 33. Nc3 {[%emt 0:00:41]} Bd3 {[%emt 0:01:21]} 34. Rd7 {[%emt 0:00:58]} Bb5 {[%emt 0:00:09]} 35. Nxb5 {[%emt 0:01:05]} axb5 {[%emt 0:00:00]} 36. Rb7 {[%emt 0:00:19]} Ra8 {[%emt 0:00:55]} 37. Rxb5 {[%emt 0:00:28]} Rxa2 {[%emt 0:00:06]} 38. Rxe5 {[%emt 0:00:14]} Kg7 {[%emt 0:01:45]} 39. Rxg5+ {[%emt 0:00:34]} Kf6 {[%emt 0:00:11]} 40. Rb5 {[%emt 0:00:00]} Re2 {[%emt 0:00:25]} 41. Rb7 Kg6 42. Rb5 Kf6 43. e5+ Rxe5 44. Rxe5 Kxe5 45. g4 Kd4 46. Kg2 e5 47. Kf3 e4+ 48. Ke2 {Kd3+ g5+} Kc3 49. Ke3 Kxb3 50. Kxe4 Kc3 1-0

[Event "36th Balaton Open A 2018"]
[Site "Balatonlelle"]
[Date "2018.06.19"]
[Round "8"]
[White "Ananya Rishi Gupta"]
[Black "Ronce, Nathan"]
[Result "1/2-1/2"]
[ECO "C04"]
[WhiteElo "1968"]
[BlackElo "2210"]
[Annotator "NA"]
[PlyCount "71"]
[EventDate "2018.06.12"]
[EventType "swiss"]
[EventCountry "HUN"]
[SourceTitle "playchess.com"]
[Source "ChessBase"]
[SourceQuality "1"]
[TimeControl "40/5400+30:1800+30"]

1. e4 {[%emt 0:00:14]} e6 {[%emt 0:01:25]} 2. d4 {[%emt 0:00:24]} d5 {[%emt 0:00:10]} 3. Nd2 {[%emt 0:00:20]} Nc6 {[%emt 0:00:15]} 4. Ngf3 {[%emt 0:01:31]} Nf6 {[%emt 0:00:22]} 5. e5 {[%emt 0:00:10]} Nd7 {[%emt 0:00:05]} 6. c3 {[%emt 0:00:18]} f6 {[%emt 0:14:35]} 7. exf6 {[%emt 0:01:30]} Qxf6 {[%emt 0:02:16]} 8. Nb3 {[%emt 0:04:45]} Bd6 {[%emt 0:06:28]} 9. Bg5 {[%emt 0:08:49]} Qf7 {[%emt 0:00:35]} 10. Bh4 {[%emt 0:01:22]} O-O $11 {[%emt 0:12:48]} 11. Bd3 {[%emt 0:08:27]} Qh5 {[%emt 0:07:25]} 12. Bg3 {[%emt 0:02:49]} Bxg3 {[%emt 0:03:29]} 13. fxg3 {[%emt 0:00:40]} e5 {[%emt 0:08:48]} 14. dxe5 {[%emt 0:02:27]} Ncxe5 {[%emt 0:01:04]} 15. Nxe5 {[%emt 0:03:51]} Qxe5+ {[%emt 0:07:42]} 16. Qe2 {[%emt 0:00:20]} Qg5 {[%emt 0:01:13]} 17. Qd2 {[%emt 0:04:31]} Qxd2+ {[%emt 0:02:34]} 18. Nxd2 {[%emt 0:00:27]} Ne5 {[%emt 0:00:57]} 19. Be2 {[%emt 0:01:43]} Bg4 {[%emt 0:05:12]} 20. Bxg4 {[%emt 0:09:49]} Nxg4 {[%emt 0:01:14]} 21. Nf3 {[%emt 0:00:36]} Rae8+ {[%emt 0:03:23]} 22. Kd2 {[%emt 0:00:47]} Ne3 {[%emt 0:04:22]} 23. Rae1 {[%emt 0:01:29]} Nxg2 {[%emt 0:03:23]} 24. Rxe8 {[%emt 0:06:37]} Rxe8 {[%emt 0:00:06]} 25. b3 {[%emt 0:01:28]} Re7 {[%emt 0:12:13]} 26. Nd4 {[%emt 0:03:49]} c5 {[%emt 0:00:33]} 27. Nc2 {[%emt 0:00:33]} d4 {[%emt 0:00:10]} 28. cxd4 {[%emt 0:00:18]} cxd4 {[%emt 0:00:06]} 29. Nxd4 {[%emt 0:02:07]} Ne3 {[%emt 0:00:22]} 30. Rc1 {[%emt 0:08:48]} Ng4 {[%emt 0:01:15]} 31. Nf3 {[%emt 0:02:47]} h6 {[%emt 0:00:41]} 32. Rc4 {[%emt 0:01:07]} Nf6 {[%emt 0:00:17]} 33. Kd3 {[%emt 0:01:35]} Kf7 {[%emt 0:00:23]} 34. Rd4 {[%emt 0:01:45]} Ke6 {[%emt 0:00:29]} 35. a3 {[%emt 0:03:10]} Rc7 {[%emt 0:00:18]} 36. Ng1 1/2-1/2

[Event "36th Balaton Open A 2018"]
[Site "Balatonlelle"]
[Date "2018.06.19"]
[Round "8"]
[White "Bernath, Bence"]
[Black "Gaal, Ede"]
[Result "1/2-1/2"]
[ECO "B09"]
[WhiteElo "1758"]
[BlackElo "2141"]
[Annotator "NA"]
[PlyCount "77"]
[EventDate "2018.06.12"]
[EventType "swiss"]
[EventCountry "HUN"]
[SourceTitle "playchess.com"]
[Source "ChessBase"]
[SourceQuality "1"]
[TimeControl "40/5400+30:1800+30"]

1. e4 {[%emt 0:00:31]} g6 {[%emt 0:00:43]} 2. d4 {[%emt 0:00:29]} Bg7 {[%emt 0:00:14]} 3. Nc3 {[%emt 0:00:32]} d6 {[%emt 0:00:18]} 4. f4 {[%emt 0:00:33]} Nf6 {[%emt 0:00:56]} 5. Bd3 {[%emt 0:00:51]} O-O {[%emt 0:00:23]} 6. Nf3 {[%emt 0:00:24]} Bg4 {[%emt 0:01:48]} 7. h3 {[%emt 0:01:38]} Bxf3 {[%emt 0:08:28]} 8. Qxf3 {[%emt 0:00:35]} Nc6 {[%emt 0:01:04]} 9. Qf2 {[%emt 0:07:42]} e5 {[%emt 0:03:35]} 10. fxe5 dxe5 11. d5 {[%emt 0:01:21]} Nb4 {[%emt 0:11:33]} 12. O-O {[%emt 0:01:25]} Ne8 {[%emt 0:06:03]} 13. g4 {[%emt 0:07:03]} Nd6 {[%emt 0:02:17]} 14. Qg3 {[%emt 0:01:58]} Qe7 {[%emt 0:02:44]} 15. Bd2 {[%emt 0:01:43]} f5 $11 {[%emt 0:06:21]} 16. gxf5 {[%emt 0:05:38]} gxf5 {[%emt 0:00:50]} 17. Bg5 {[%emt 0:01:06]} Qf7 {[%emt 0:00:54]} 18. exf5 {[%emt 0:02:30]} Nxd3 {[%emt 0:05:02]} 19. f6 {[%emt 0:05:07]} Nf4 {[%emt 0:05:14]} 20. fxg7 {[%emt 0:03:35]} Qxg7 {[%emt 0:00:12]} 21. Bxf4 {[%emt 0:00:11]} exf4 {[%emt 0:00:46]} 22. Qxg7+ {[%emt 0:00:30]} Kxg7 {[%emt 0:00:11]} 23. Ne2 {[%emt 0:00:38]} Rf5 {[%emt 0:02:43]} 24. Nxf4 {[%emt 0:00:48]} Rg8 {[%emt 0:00:43]} 25. Ne6+ {[%emt 0:06:10]} Kh6+ {[%emt 0:00:34]} 26. Kh1 {[%emt 0:00:54]} Rxd5 27. Rad1 {[%emt 0:11:38]} Re5 {[%emt 0:08:39]} 28. Rf6+ {[%emt 0:00:39]} Rg6 {[%emt 0:00:17]} 29. Rxg6+ {[%emt 0:00:22]} hxg6 {[%emt 0:00:14]} 30. Nxc7 {[%emt 0:00:12]} Ne4 {[%emt 0:00:27]} 31. Rd4 {[%emt 0:04:00]} Ng5 {[%emt 0:12:15]} 32. Rd2 {[%emt 0:08:17]} Nxh3 {[%emt 0:02:46]} 33. Rh2 {[%emt 0:00:36]} Rh5 {[%emt 0:00:39]} 34. Nd5 {[%emt 0:01:43]} Kg5 {[%emt 0:03:06]} 35. c4 {[%emt 0:01:15]} Rh4 {[%emt 0:02:50]} 36. b4 {[%emt 0:02:26]} a6 {[%emt 0:08:16]} 37. c5 {[%emt 0:02:59]} Rd4 {[%emt 0:03:07]} 38. Rxh3 {[%emt 0:02:09]} Rxd5 {[%emt 0:00:07]} 39. Rh7 {[%emt 0:00:19]} 1/2-1/2

[Event "36th Balaton Open A 2018"]
[Site "Balatonlelle"]
[Date "2018.06.20"]
[Round "9"]
[White "Sardy, Peter"]
[Black "Bernath, Bence"]
[Result "0-1"]
[ECO "C71"]
[WhiteElo "2340"]
[BlackElo "1758"]
[Annotator "RC"]
[PlyCount "83"]
[EventDate "2018.06.12"]
[EventType "swiss"]
[EventCountry "HUN"]
[SourceTitle "playchess.com"]
[Source "ChessBase"]
[SourceQuality "1"]
[TimeControl "40/5400+30:1800+30"]

1. e4 {[%emt 0:00:05]} e5 {[%emt 0:01:02]} 2. Nf3 {[%emt 0:00:05]} Nc6 {[%emt 0:00:32]} 3. Bb5 {[%emt 0:00:05]} a6 {[%emt 0:00:32]} 4. Ba4 {[%emt 0:00:05]} d6 {[%emt 0:00:31]} 5. d3 {[%emt 0:03:12]} b5 {[%emt 0:01:00]} 6. Bb3 {[%emt 0:00:05]} Na5 {[%emt 0:00:21]} 7. Nc3 {[%emt 0:01:51]} Nxb3 {[%emt 0:03:00]} 8. axb3 {[%emt 0:00:02]} Bd7 {[%emt 0:00:31]} 9. O-O {[%emt 0:00:10]} Nf6 {[%emt 0:01:30]} 10. d4 {[%emt 0:03:37]} exd4 {[%emt 0:03:35]} 11. Qxd4 {[%emt 0:03:34]} Be7 {[%emt 0:01:38]} 12. Re1 {[%emt 0:09:19]} O-O {[%emt 0:03:17]} 13. h3 {[%emt 0:00:46]} Bc6 {[%emt 0:03:08]} 14. Qd3 {[%emt 0:03:06]} Re8 {[%emt 0:02:11]} 15. Nd4 {[%emt 0:02:39]} Bb7 {[%emt 0:00:26]} 16. Nf5 {[%emt 0:04:01]} Bf8 {[%emt 0:01:44]} 17. Bg5 {[%emt 0:04:03]} h6 {[%emt 0:01:11]} 18. Bd2 {[%emt 0:03:40]} Qd7 {[%emt 0:02:18]} 19. g4 {[%emt 0:00:35]} Rad8 {[%emt 0:08:13]} 20. f3 {[%emt 0:17:53]} Kh8 {[%emt 0:03:13]} 21. Re2 {[%emt 0:05:19]} Ng8 {[%emt 0:01:13]} 22. Nd5 {[%emt 0:15:29]} Bxd5 {[%emt 0:08:33]} 23. Qxd5 {[%emt 0:00:26]} c6 {[%emt 0:00:55]} 24. Qd3 {[%emt 0:01:20]} Qa7+ {[%emt 0:01:10]} 25. Kg2 {[%emt 0:06:20]} d5 {[%emt 0:01:16]} 26. e5 {[%emt 0:00:23]} g6 {[%emt 0:00:39]} 27. Nd4 {[%emt 0:00:09]} Qb7 {[%emt 0:00:42]} 28. b4 {[%emt 0:00:11]} c5 {[%emt 0:03:02]} 29. bxc5 {[%emt 0:00:27]} Bxc5 {[%emt 0:00:10]} 30. e6 {[%emt 0:01:17]} Kh7 {[%emt 0:01:31]} 31. Rae1 {[%emt 0:00:49]} Bf8 {[%emt 0:05:13]} 32. h4 {[%emt 0:02:11]} Bg7 {[%emt 0:01:11]} 33. h5 {[%emt 0:01:01]} Rd6 {[%emt 0:01:06]} 34. Bb4 {[%emt 0:01:14]} Rdd8 {[%emt 0:00:52]} 35. exf7 {[%emt 0:02:12]} Rxe2+ {[%emt 0:01:18]} 36. Rxe2 {[%emt 0:00:11]} Qxf7 {[%emt 0:00:08]} 37. Re6 {[%emt 0:00:12]} Qa7 {[%emt 0:01:06]} 38. Qxg6+ {[%emt 0:00:48]} Kh8 {[%emt 0:00:16]} 39. Nf5 {[%emt 0:00:30]} Rd7 {[%emt 0:00:34]} 40. Re8 {[%emt 0:00:00]} a5 {[%emt 0:01:03]} 41. Nxh6 {[%emt 0:02:25]} Bxh6 {[%emt 0:00:50]} 42. Rxg8# {[%emt 0:00:08]} 0-1